[Event "Czech Extraliga 2024-25"]
[Site "Czechia"]
[Date "2024.11.03"]
[Round "2.1"]
[White "Stinka, Jakub"]
[Black "Gumularz, Szymon"]
[Result "1/2-1/2"]
[ECO "A65"]
[WhiteElo "2355"]
[BlackElo "2579"]
[Annotator "TA"]
[PlyCount "98"]
[EventDate "2024.09.12"]
[EventType "team-tourn"]
[EventCountry "CZE"]
[SourceTitle "playchess.com"]
[Source "ChessBase"]
[SourceQuality "1"]
[TimeControl "40/5400+30:1800+30"]

{[%evp 31,98,22,91,114,117,48,37,41,139,156,169,180,165,71,64,108,180,150,161,145,89,33,27,40,29,31,31,43,38,45,40,39,33,8,8,8,58,8,27,8,8,8,8,8,8,0,8,0,0,0,0,0,0,0,8,8,8,8,8,8,8,8,8,8,8,8,8,7,7]} 1. d4 {[%emt 0:00:12]} e6 {[%emt 0:00:04]} 2. c4 {[%emt 0:00:26]} c5 {[%emt 0:02:22]} 3. d5 {[%emt 0:01:39]} exd5 {[%emt 0:00:07]} 4. cxd5 {[%emt 0:00:20]} d6 {[%emt 0:00:07]} 5. Nc3 {[%emt 0:00:06]} g6 {[%emt 0:00:05]} 6. e4 {[%emt 0:01:20]} Bg7 {[%emt 0:01:29]} 7. Bd3 {[%emt 0:02:40]} Nf6 {[%emt 0:00:52]} 8. h3 $1 {[%emt 0:01:50][%mdl 4] now scores much better than the old 8.Nge2. A65: Modern Benoni: 6 e4.} a6 {[%emt 0:02:18]} 9. a4 {[%emt 0:00:22]} Nfd7 {[%emt 0:10:43]} 10. Nf3 {[%emt 0:07:31]} Ne5 {[%emt 0:00:13]} 11. Nxe5 {[%emt 0:02:29]} Bxe5 {[%emt 0:00:07]} 12. O-O {[%emt 0:14:14]} Nd7 $146 {[%emt 0:00:08]} ({Predecessor:} 12... Qh4 13. f4 Bd4+ 14. Kh2 Nd7 15. Qe1 Qh6 16. Be3 Ne5 17. fxe5 Bxe3 18. Qg3 Bd4 19. exd6 {1-0 Lebeau,G (2015)-Cloutier,M (2072) Montreal Mercredi 04 2014 (2)}) 13. Bh6 {[%emt 0:05:33]} g5 {[%emt 0:06:07]} 14. h4 {[%emt 0:17:11]} gxh4 {[%emt 0:04:09]} 15. f4 {[%emt 0:02:46]} Bd4+ {[%emt 0:00:08]} 16. Kh1 {[%emt 0:03:37]} Rg8 {[%emt 0:00:16]} (16... h3 $11 17. g3 (17. gxh3 $2 Qh4 $19) 17... Rg8) 17. e5 $1 $16 {[%emt 0:02:17]} h3 {[%emt 0:02:49]} 18. g3 {[%emt 0:01:31]} (18. gxh3 $2 Qh4 (18... dxe5 $2 19. Bg5 $18) 19. Qd2 Nxe5 $19 (19... Qxh6 $2 20. Bf5 $19) (19... dxe5 $2 20. Bxh7 Rh8 21. Bf5 $19) (19... Qxh3+ $2 20. Qh2 $19)) (18. g4 $16) 18... dxe5 $14 {[%emt 0:17:30]} 19. Ne4 $1 {[%emt 0:05:40]} (19. Bxh7 Rxg3 20. Ne4 Nf6 21. fxe5 Qxd5 (21... Nxh7 $2 22. Nd6+ $18) (21... Nxe4 22. Bxe4 Qh4 23. Bf4 $11) 22. Rxf6 (22. exf6 h2 $15) 22... Bg4 $11) 19... Rg6 {[%emt 0:00:42]} (19... Nb6 $14) 20. Bg5 $16 {[%emt 0:05:44]} Qb6 {[%emt 0:00:43]} 21. Rb1 $1 {[%emt 0:06:39]} c4 {[%emt 0:04:27]} 22. Bxc4 {[%emt 0:02:15]} (22. Bc2 $1 $18 {Black must now prevent fxe5.} Nc5 23. Nd2 (23. a5 Qc7 $16)) 22... Nc5 $16 {[%emt 0:00:05]} 23. Nxc5 {[%emt 0:01:27]} (23. a5 Qb4 24. Bd3 Nxd3 25. Qxd3 Bf5 $11) 23... Qxc5 {[%emt 0:00:11]} (23... Bxc5 $16 24. Bh4 exf4 (24... Bg4 25. Be2 $16)) 24. Rc1 $18 {[%emt 0:04:44]} Qd6 {[%emt 0:00:26]} 25. Qf3 $1 {[%emt 0:01:53]} f6 {[%emt 0:09:05] [#]} 26. Rce1 {[%emt 0:00:44]} ({Much worse is} 26. fxe5 $6 Bxe5 27. Bf4 Bxf4 28. Qxf4 Qxf4 29. Rxf4 Bd7 $11) (26. Bd3 $1 $16 Rg7 (26... fxg5 $2 27. fxe5 Bxe5 28. Bxg6+ Kd8 29. Bh5 $18) 27. Rce1) 26... Kd8 $1 $14 {[%emt 0:15:08]} (26... fxg5 $2 {is the wrong capture.} 27. fxe5 Bxe5 28. Rxe5+ Kd8 (28... Qxe5 29. Qf8+ Kd7 30. Rf7+) 29. Re2 $18) 27. fxe5 {[%emt 0:04:22]} (27. Bd3 {is interesting.} fxg5 28. Bxg6 hxg6 29. fxe5 Bxe5 30. Qe4) 27... Bxe5 {[%emt 0:00:10]} 28. Rxe5 {[%emt 0:00:51]} Qxe5 {[%emt 0:00:12]} 29. Bxf6+ {[%emt 0:00:09]} Rxf6 {[%emt 0:00:30]} 30. Qxf6+ {[%emt 0:00:03]} Qxf6 {[%emt 0:00:06]} 31. Rxf6 {[%emt 0:00:05]} b5 {[%emt 0:16:17]} 32. axb5 {[%emt 0:03:00]} axb5 {[%emt 0:00:30]} 33. Bxb5 {[%emt 0:00:46]} Ke7 {[%emt 0:00:16]} ({Better is} 33... Ra5 $11 34. Bc4 Ke7) 34. Rf2 {[%emt 0:02:01]} ({White should play} 34. Rb6 $1 $14 Ra1+ 35. Kh2) 34... Kd6 {[%emt 0:00:16]} 35. Bc4 {[%emt 0:00:37]} Ra4 {[%emt 0:00:21]} 36. b3 {[%emt 0:00:21]} Ra1+ {[%emt 0:00:04]} 37. Kh2 {[%emt 0:00:05]} Rb1 {[%emt 0:00:05]} 38. Rd2 {[%emt 0:01:06]} Bg4 {[%emt 0:00:45]} 39. Rf2 {[%emt 0:00:29]} h5 {[%emt 0:01:36]} 40. Bf1 {[%emt 0:00:52]} Rxb3 {[%emt 0:00:29]} 41. Rd2 {[%emt 0:07:42]} Rb4 {[%emt 0:05:29]} 42. Bxh3 {[%emt 0:01:37]} Bxh3 {[%emt 0:00:07]} 43. Kxh3 {[%emt 0:00:06]} Rc4 {[%emt 0:00:02]} 44. Rd1 {[%emt 0:02:17]} Rb4 {[%emt 0:00:10]} 45. Rf1 {[%emt 0:02:57]} Kxd5 {[%emt 0:00:05]} 46. Rf5+ {[%emt 0:00:07]} Ke6 {[%emt 0:00:02]} 47. Rxh5 {[%emt 0:00:04]} Kf6 {[%emt 0:00:01]} 48. Ra5 {[%emt 0:00:28]} Kg6 {[%emt 0:00:04]} 49. g4 {[%emt 0:00:14]} Rb1 {[%emt 0:37:02]} 1/2-1/2

[Event "Czech Extraliga 2024-25"]
[Site "Czechia"]
[Date "2024.11.03"]
[Round "2.2"]
[White "Nguyen, Thai Dai Van"]
[Black "Korobov, Anton"]
[Result "1/2-1/2"]
[ECO "B62"]
[WhiteElo "2670"]
[BlackElo "2636"]
[Annotator "TA"]
[PlyCount "136"]
[EventDate "2024.09.12"]
[EventType "team-tourn"]
[EventCountry "CZE"]
[SourceTitle "playchess.com"]
[Source "ChessBase"]
[SourceQuality "1"]
[TimeControl "40/5400+30:1800+30"]

{[%evp 12,136,31,16,47,12,33,39,38,53,45,31,30,47,32,51,51,42,42,61,47,47,34,35,45,29,37,40,98,95,89,89,94,94,92,92,92,91,114,112,137,103,116,110,120,112,143,142,141,147,164,164,164,164,165,165,165,0,165,150,158,158,158,155,151,147,147,147,159,152,159,175,173,144,170,164,279,144,144,0,224,0,131,121,125,131,258,243,258,185,175,175,175,136,135,131,136,136,136,8,52,0,140,140,147,147,140,0,0,0,133,133,140,61,61,61,61,61,61,0,0,0,61,0,61,61,75]} 1. e4 {[%emt 0:00:39]} c5 {[%emt 0:00:07]} 2. Nf3 {[%emt 0:00:05][%cal Bg1f3,Bf3d4,Bd4b5][%mdl 32]} d6 {[%emt 0:00:06]} 3. d4 {[%emt 0:00:04]} cxd4 {[%emt 0:00:06]} 4. Nxd4 {[%emt 0:00:06]} Nf6 {[%emt 0:00:06]} 5. Nc3 {[%emt 0:00:08]} Nc6 {[%emt 0:00:06]} 6. Bg5 {[%emt 0:00:35]} e6 {[%emt 0:00:08]} 7. Qd3 {[%emt 0:03:23]} Bd7 {[%emt 0:00:14]} 8. Ndb5 {[%emt 0:00:50]} Nb4 $1 {[%emt 0:01:51]} 9. Qd1 {[%emt 0:00:19]} a6 {[%emt 0:00:13]} 10. Bxf6 {[%emt 0:00:28]} gxf6 {[%emt 0:00:12]} 11. a3 $1 {[%emt 0:00:07]} axb5 {[%emt 0:00:17]} 12. axb4 {[%emt 0:00:06]} Rxa1 {[%emt 0:01:11]} 13. Qxa1 {[%emt 0:00:02]} d5 {[%emt 0:00:07]} 14. exd5 {[%emt 0:02:30]} (14. Bxb5 Bxb5 15. Nxb5 dxe4 $11) 14... Bxb4 {[%emt 0:00:59]} 15. Bd3 {[%emt 0:00:14]} exd5 {[%emt 0:03:26]} 16. O-O {[%emt 0:00:13][%csl LRb5,LRd5]} Bxc3 {[%emt 0:00:11]} 17. bxc3 {[%emt 0:00:02] Qa3 would now be deadly.} O-O {[%emt 0:00:12]} 18. Qa3 {[%emt 0:00:40][%mdl 1024] White has compensation.} Re8 {[%emt 0:08:44]} 19. Qd6 {[%emt 0:04:23]} Kg7 {[%emt 0:17:54]} (19... h6 $14) 20. Qg3+ $1 $16 {[%emt 0:21:30]} (20. Qxd5 Qc7 $11) 20... Kh8 {[%emt 0:04:57]} 21. Qh4 {[%emt 0:00:51][%csl Gd3][%cal Rh4h7]} f5 {[%emt 0:00:08]} 22. Qd4+ {[%emt 0:00:06]} Kg8 {[%emt 0:00:39]} 23. Qxd5 {[%emt 0:09:49] White is more active.} Qc7 {[%emt 0:02:46]} 24. Bxb5 {[%emt 0:14:21]} Be6 {[%emt 0:10:07]} 25. Qf3 {[%emt 0:00:12]} Rd8 {[%emt 0:05:55]} 26. Bd3 {[%emt 0:00:31]} Qxc3 {[%emt 0:01:53]} 27. Qxb7 {[%emt 0:00:05]} (27. Bxf5 $2 Qxf3 28. gxf3 Bxf5 $19) 27... Qf6 {[%emt 0:00:32]} 28. Rb1 {[%emt 0:05:40]} h6 {[%emt 0:05:49]} 29. Qc7 {[%emt 0:09:29]} Kh7 {[%emt 0:02:08]} 30. h3 {[%emt 0:01:37]} Rc8 {[%emt 0:08:11]} 31. Qf4 {[%emt 0:01:51]} Kg7 {[%emt 0:00:50]} 32. Rb5 {[%emt 0:07:01][%cal Rd3f5]} Qg5 {[%emt 0:02:55]} 33. Qe5+ {[%emt 0:00:14]} Qf6 {[%emt 0:02:10]} 34. Qf4 {[%emt 0:01:07][%cal Rd3f5]} (34. Bxf5 $6 Qxe5 35. Rxe5 Bxf5 $14) 34... Qg5 {[%emt 0:01:36]} 35. Qf3 {[%emt 0:00:11][%cal Rd3f5]} Bd7 {[%emt 0:01:09]} 36. Rb6 {[%emt 0:09:20]} (36. Bxf5 $6 Bxb5 37. Bxc8 Qc1+ 38. Kh2 Qxc2 $14) 36... Re8 {[%emt 0:06:40]} 37. Rb1 {[%emt 0:03:24]} Re5 {[%emt 0:04:07]} 38. Kh2 {[%emt 0:00:24]} Rc5 {[%emt 0:01:11]} 39. Rb6 {[%emt 0:02:31] Wards off Bc6} Be6 {[%emt 0:02:04]} 40. Rb5 {[%emt 0:04:31]} Rxb5 {[%emt 0:03:50]} 41. Bxb5 {[%emt 0:30:09][%mdl 4096] Endgame. KQB-KQB} f4 {[%emt 0:30:02]} 42. Qc3+ {[%emt 0:00:00]} Qf6 {[%emt 0:00:00]} 43. Qc5 {[%emt 0:00:00]} Qg5 {[%emt 0:00:00]} (43... Qf5 $142 44. Qxf5 Bxf5) 44. Qd4+ {[%emt 0:00:00]} ({White must play} 44. Qxg5+ $1 $18 hxg5 45. Ba6) 44... Qf6 {[%emt 0:00:00]} 45. Qc5 {[%emt 0:00:00]} (45. c3 $16) 45... Qg5 $1 $18 {[%emt 0:00:00] [#]} 46. Qd4+ {[%emt 0:00:00]} (46. Qxg5+ $1 $18 hxg5 47. g3 fxg3+ 48. fxg3 (48. Kxg3 Kf6 $16)) 46... Qf6 $16 {[%emt 0:00:00]} 47. Qd6 {[%emt 0:00:00]} Bf5 {[%emt 0:00:00]} 48. Qc5 {[%emt 0:00:00]} (48. Qxf4 Bxc2 49. Qxf6+ Kxf6 $14) 48... f3 {[%emt 0:00:00] [#]} (48... Be6 $16 49. Bf1 Qg5) 49. g3 $1 $18 {[%emt 0:00:00]} (49. gxf3 Bxc2 50. Qxc2 Qe5+ 51. Kg2 Qg5+ 52. Kh1 Qxb5 $11) 49... Qe6 {[%emt 0:00:00]} 50. Qc3+ {[%emt 0:00:00]} Kg8 {[%emt 0:00:00]} 51. Bc4 {[%emt 0:00:00]} (51. Qxf3 Bxc2 52. Bf1 Qd6 $11) 51... Qd7 {[%emt 0:00:00]} 52. Bd3 {[%emt 0:05:28]} (52. Qxf3 $6 Bxc2 53. Qg4+ Qxg4 54. hxg4 Bd1 $11) 52... Bxh3 {[%emt 0:00:17] aiming for ...Bg2.} 53. Qf6 {[%emt 0:00:13][%csl LRf3,LRh6]} Be6 {[%emt 0:00:07]} 54. Qxh6 {[%emt 0:01:26] Hoping for Bh7+.} Qd4 {[%emt 0:00:42]} 55. Bh7+ {[%emt 0:00:05]} (55. Qe3 $16 Qh8+ (55... Qxe3 $2 56. fxe3 Kf8 57. Kg1 $18) 56. Kg1) 55... Kh8 $14 {[%emt 0:00:05]} 56. Bd3+ {[%emt 0:00:04]} (56. Bf5+ $14 Kg8 57. Bh7+ (57. Bxe6 Qxf2+ 58. Kh3 fxe6 $11) 57... Kh8 58. Bf5+ Kg8 59. Bh7+ (59. Bxe6 Qxf2+ 60. Kh3 fxe6 $11)) 56... Kg8 $16 {[%emt 0:00:04]} 57. Qe3 {[%emt 0:01:23]} Qh8+ {[%emt 0:01:29]} (57... Qxe3 58. fxe3 Bd5 (58... f2 $2 59. Kg2 $18) 59. Kg1 $16) 58. Kg1 {[%emt 0:00:01]} Qa1+ {[%emt 0:00:09]} 59. Kh2 {[%emt 0:00:16]} Qh8+ {[%emt 0:00:03]} 60. Kg1 {[%emt 0:00:03]} Qa1+ $1 {[%emt 0:00:06]} 61. Bf1 {[%emt 0:00:54]} Qd1 {[%emt 0:03:36]} 62. Qd3 {[%emt 0:00:19]} (62. c4 $16) 62... Qc1 $14 {[%emt 0:00:18]} 63. Qd8+ {[%emt 0:00:57]} Kg7 {[%emt 0:00:53]} 64. Qd4+ {[%emt 0:00:01]} Kg8 {[%emt 0:00:22][%cal Oe6h3]} 65. Qd8+ {[%emt 0:00:40]} (65. Qf4 $1 $14 Qxc2 66. Qxf3) 65... Kg7 $11 {[%emt 0:00:02]} 66. Qd4+ {[%emt 0:00:42]} ({Better is} 66. Qh4 $11) 66... Kg8 $14 {[%emt 0:00:02]} 67. Qe3 {[%emt 0:00:56]} (67. Qf4 $1 $14 Qxc2 68. Qxf3) 67... Qxc2 {[%emt 0:00:22]} ({Black should try} 67... Qd1 $1 $11) 68. Qxf3 {[%emt 0:00:13]} Qb1 {[%emt 0:00:59] Weighted Error Value: White=0.27 (precise) /Black=0.10 (very precise) .  Mistake:       	White=9     	Black=4      Inaccurate:     	White=1     	Black=2      OK:         	White=25    	Black=18     Best:        	White=8     	Black=13     Strong:       	White=3     	Black=3} 1/2-1/2

[Event "Czech Extraliga 2024-25"]
[Site "Czechia"]
[Date "2024.11.03"]
[Round "2.2"]
[White "L'Ami, Erwin"]
[Black "Havelka, Josef"]
[Result "1-0"]
[ECO "B30"]
[WhiteElo "2614"]
[BlackElo "2365"]
[Annotator "TA"]
[PlyCount "131"]
[EventDate "2024.09.12"]
[EventType "team-tourn"]
[EventCountry "CZE"]
[SourceTitle "playchess.com"]
[Source "ChessBase"]
[SourceQuality "1"]
[TimeControl "40/5400+30:1800+30"]

{[%evp 15,131,23,10,13,11,10,14,4,21,4,15,19,8,2,15,6,38,14,21,0,0,0,0,0,0,0,0,0,0,0,0,0,19,22,2,6,18,16,22,0,17,28,20,0,15,10,64,52,64,34,35,31,27,24,27,44,48,31,26,45,58,15,72,58,81,73,66,60,60,68,87,74,87,85,91,88,85,36,43,47,54,44,122,8,183,195,218,227,204,187,337,330,633,273,645,626,1075,908,1047,1006,979,926,934,922,1389,1142,1093,591,1878,639,3547,1755,3750,3355,4133,1950,2652,1881]} 1. e4 {[%emt 0:00:06]} c5 {[%emt 0:02:03]} 2. Nf3 {[%emt 0:00:11]} Nc6 {[%emt 0:00:23]} 3. Bb5 {[%emt 0:00:21]} e6 {[%emt 0:00:07]} 4. O-O {[%emt 0:00:44]} Nge7 {[%emt 0:00:13][%cal Bg8e7,Be7d5,Bd5f6,Bf6e4][%mdl 32]} 5. Re1 {[%emt 0:00:39]} a6 {[%emt 0:00:27]} 6. Bf1 {[%emt 0:00:13]} d5 {[%emt 0:01:00]} 7. exd5 {[%emt 0:00:48]} Nxd5 {[%emt 0:00:06]} 8. d4 {[%emt 0:00:11]} Nf6 {[%emt 0:01:32]} 9. dxc5 {[%emt 0:04:33]} Qxd1 {[%emt 0:04:47]} 10. Rxd1 {[%emt 0:00:16]} Bxc5 {[%emt 0:01:07]} 11. Nbd2 {[%emt 0:00:11] The position is equal.} O-O {[%emt 0:02:07]} 12. Nb3 {[%emt 0:00:43]} Ba7 {[%emt 0:02:24]} 13. Bf4 {[%emt 0:02:03]} Ne4 {[%emt 0:06:00]} 14. Be3 {[%emt 0:11:34]} Bxe3 {[%emt 0:01:11]} 15. fxe3 {[%emt 0:00:23]} e5 {[%emt 0:05:42]} 16. Bc4 {[%emt 0:05:21]} Nf6 {[%emt 0:04:20]} 17. c3 {[%emt 0:08:46]} e4 {[%emt 0:18:17]} 18. Nfd4 {[%emt 0:02:58]} Ne5 {[%emt 0:00:11]} 19. Bf1 {[%emt 0:02:37]} Bg4 {[%emt 0:03:06]} 20. Rd2 {[%emt 0:03:07]} Rac8 {[%emt 0:01:58]} 21. h3 {[%emt 0:04:12]} Bd7 {[%emt 0:00:06]} 22. Rad1 {[%emt 0:00:48]} Rc7 {[%emt 0:02:29]} 23. Rf2 {[%emt 0:06:25]} Rd8 {[%emt 0:12:28]} 24. Nf5 {[%emt 0:06:23]} Kf8 {[%emt 0:01:48]} 25. Rd6 {[%emt 0:02:43][%cal Of5g7] next Nxg7! is good for White.} Rc6 {[%emt 0:04:27]} 26. Rd4 {[%emt 0:04:49]} Rc7 $1 {[%emt 0:02:05]} 27. Na5 {[%emt 0:05:16]} Rb8 {[%emt 0:05:10]} 28. Nd6 {[%emt 0:03:18]} b6 {[%emt 0:02:22]} 29. Nb3 {[%emt 0:03:31]} Nc6 {[%emt 0:03:48]} 30. Rd1 {[%emt 0:04:29][%cal Ob3d2]} Be6 {[%emt 0:06:18]} (30... Ne5 $1 $11) 31. Bxa6 $14 {[%emt 0:07:05]} Ra8 {[%emt 0:00:37]} 32. Bb5 {[%emt 0:01:51]} Rxa2 {[%emt 0:01:21]} 33. Nd4 {[%emt 0:01:17]} Nxd4 {[%emt 0:00:36]} 34. Rxd4 {[%emt 0:00:17]} Rc5 {[%emt 0:01:50]} 35. Bc4 {[%emt 0:01:40]} Bxc4 {[%emt 0:01:14]} 36. Nxc4 {[%emt 0:00:16]} b5 {[%emt 0:02:40]} 37. Nd6 {[%emt 0:00:44]} Re5 {[%emt 0:01:40]} 38. Rb4 {[%emt 0:00:48]} Ra5 {[%emt 0:00:36]} (38... Ra1+ $11 {keeps the balance.} 39. Kh2 Rd1 40. Rxb5 (40. Nxb5 Nd5 $11) 40... Rxb5 41. Nxb5 Re1) 39. Kh2 {[%emt 0:02:30] White is more active.} Ke7 {[%emt 0:00:24]} 40. Nf5+ {[%emt 0:00:26]} Kf8 {[%emt 0:00:11]} 41. Nd4 {[%emt 0:34:02]} Rd5 {[%emt 0:14:59]} 42. Rf5 {[%emt 0:00:00]} Ke8 {[%emt 0:01:24]} 43. g4 {[%emt 0:00:00]} (43. Rxb5 Raxb5 44. Nxb5 Rd3 $14) 43... Kd7 {[%emt 0:02:58]} 44. Kg3 {[%emt 0:00:00]} (44. Nxb5 Rxf5 45. gxf5 Nd5 $11) 44... Rxf5 {[%emt 0:01:46]} 45. Nxf5 $16 {[%emt 0:00:00][%mdl 4096] Endgame. KRN-KRN} (45. gxf5 Nd5 46. Rxb5 Rxb5 47. Nxb5 Nxe3 $11) 45... g6 {[%emt 0:03:30]} 46. Rd4+ {[%emt 0:00:00]} (46. Nh6 $16) 46... Ke6 $14 {[%emt 0:01:17]} 47. Nd6 {[%emt 0:00:00]} Ra2 {[%emt 0:05:30]} 48. Rd2 $1 {[%emt 0:00:00]} (48. Nxe4 Rxb2 49. Rd6+ Ke5 50. Rxf6 Kxe4) 48... Nd5 {[%emt 0:00:40]} (48... h5 $1 $14) 49. Nxb5 {[%emt 0:00:00]} (49. Nxe4 $16 {And now Ng5+ would win.} Nb6 (49... Nxe3 $2 {loses.} 50. Ng5+ Kf6 51. Kf4 $18) 50. Ng5+ Ke7 51. Rf2 (51. Nxh7 Nc4 $11)) 49... f5 $2 {[%emt 0:01:10] This costs Black the game.} (49... Nxe3 $11 {and Black stays safe.} 50. Re2 Nc4) 50. gxf5+ $18 {[%emt 0:00:00]} gxf5 {[%emt 0:00:04]} 51. Nd4+ {[%emt 0:00:00]} Kf6 {[%emt 0:00:35]} 52. Nxf5 {[%emt 0:00:00]} Nxc3 {[%emt 0:00:34]} (52... Ke5 $142 53. Rf2 Ra6) 53. Kf4 {[%emt 0:01:02] [#] Threatens to win with Rd6+.} Na4 $2 {[%emt 0:01:07]} (53... Nb5 54. Rc2 (54. Kxe4 Ra4+ 55. Nd4 h5 $18) 54... Ra6) 54. Rd6+ {[%emt 0:00:16]} (54. Kxe4 Nc5+ 55. Kd5 Na4 $16) 54... Kf7 {[%emt 0:00:02]} 55. Ra6 {[%emt 0:00:25] White is clearly winning.} ({Not} 55. Kxe4 Rxb2 56. Rc6 Rb4+ 57. Ke5 Rb5+ 58. Kf4 Ra5 $16) 55... Nc3 {[%emt 0:01:35] ...Ne2+ is the strong threat.} 56. Rxa2 {[%emt 0:00:28]} Nxa2 {[%emt 0:00:03]} 57. Kxe4 {[%emt 0:00:12] KN-KN} Nb4 {[%emt 0:00:22]} 58. Nd4 {[%emt 0:00:58]} Kf6 {[%emt 0:00:20]} 59. Nf3 {[%emt 0:00:21]} h6 {[%emt 0:00:11]} 60. b3 {[%emt 0:01:58][%cal Bb2b3,Bb3b4][%mdl 32]} Ke6 {[%emt 0:00:24]} 61. Ne1 {[%emt 0:00:41]} Nd5 {[%emt 0:01:30]} 62. Kd4 {[%emt 0:00:11] [#] Nd3 would now be deadly.} Ne7 {[%emt 0:00:44]} 63. e4 {[%emt 0:00:58] Prevents Nf5+. Strongly threatening Nd3.} Nc6+ {[%emt 0:00:40]} 64. Kc5 {[%emt 0:00:44]} Na5 {[%emt 0:00:16]} 65. b4 {[%emt 0:00:07]} Nb3+ {[%emt 0:00:05]} 66. Kc4 {[%emt 0:00:17] Weighted Error Value: White=0.16 (very precise) /Black=0.27 (precise) .  Loses game:     	---       	Black=1      Mistake:       	White=2     	Black=5      Inaccurate:     	White=2     	Black=4      OK:         	White=24    	Black=17     Best:        	White=3     	Black=7      Strong:       	White=1     	Black=1} 1-0

[Event "Czech Extraliga 2024-25"]
[Site "Czechia"]
[Date "2024.11.03"]
[Round "2.2"]
[White "Movsesian, Sergei"]
[Black "Finek, Vaclav"]
[Result "1/2-1/2"]
[ECO "C43"]
[WhiteElo "2609"]
[BlackElo "2472"]
[Annotator "TA"]
[PlyCount "86"]
[EventDate "2024.09.12"]
[EventType "team-tourn"]
[EventCountry "CZE"]
[SourceTitle "playchess.com"]
[Source "ChessBase"]
[SourceQuality "1"]
[TimeControl "40/5400+30:1800+30"]

{[%evp 12,86,25,4,12,7,24,0,18,20,17,15,30,25,20,17,23,-34,50,49,46,32,45,32,78,50,56,35,35,44,72,0,0,-23,-42,-50,-17,-18,0,0,0,-36,-36,-58,-50,-87,-41,-81,0,0,0,-61,-14,-49,0,0,0,0,0,-7,112,117,168,16,52,10,11,0,0,-141,0,0,0,-149,0,0,0]} 1. e4 {[%emt 0:00:07]} e5 {[%emt 0:00:06]} 2. Nf3 {[%emt 0:00:10]} Nf6 {[%emt 0:00:07]} 3. d4 {[%emt 0:00:31]} Nxe4 {[%emt 0:00:07]} 4. Bd3 {[%emt 0:00:05]} d5 {[%emt 0:00:07]} 5. Nxe5 {[%emt 0:00:09]} Nd7 {[%emt 0:00:20]} 6. Nxd7 {[%emt 0:00:25]} Bxd7 {[%emt 0:00:07]} 7. Nd2 {[%emt 0:00:20]} Nxd2 {[%emt 0:09:01]} 8. Bxd2 {[%emt 0:01:17]} Qf6 {[%emt 0:06:05]} 9. O-O {[%emt 0:03:41]} Be6 {[%emt 0:05:12]} (9... Qxd4 $5 10. Be3 Qb4 $11) 10. c3 {[%emt 0:09:27]} Bd6 {[%emt 0:06:19]} 11. Qh5 {[%emt 0:03:49]} h6 {[%emt 0:02:44] Inhibits Bg5.} 12. f4 {[%emt 0:08:35][%cal Bf2f4,Bf4f5][%mdl 32]} O-O-O {[%emt 0:13:37]} 13. f5 {[%emt 0:02:40]} Bd7 {[%emt 0:00:17]} 14. b4 {[%emt 0:02:54]} (14. Kh1 $11) 14... c6 {[%emt 0:15:12]} (14... Bxb4 $15 15. Be1 Be7) 15. Kh1 {[%emt 0:06:10]} Rde8 {[%emt 0:01:28]} 16. a4 {[%emt 0:01:32]} Qd8 {[%emt 0:04:02]} 17. b5 {[%emt 0:01:41]} (17. Qxf7 $2 Qh4 18. h3 (18. Qxg7 $2 Qxh2#) 18... Qg3 $19) 17... f6 {[%emt 0:02:55]} (17... Qf6 $14 {should be considered.}) 18. Rfb1 {[%emt 0:05:02] White is more active.} Qc7 {[%emt 0:03:24]} 19. c4 {[%emt 0:15:57]} dxc4 {[%emt 0:03:10]} 20. Bxc4 {[%emt 0:01:23]} Re4 {[%emt 0:03:05]} 21. bxc6 {[%emt 0:09:43]} ({Better is} 21. Be6 $16 {bxc6 is the strong threat.} Kd8 (21... Rxd4 22. bxc6 bxc6 23. Bc3 $16) 22. d5 Bxe6 23. dxe6 (23. fxe6 Re5 $16)) 21... Bxc6 $11 {[%emt 0:00:23]} 22. Be6+ {[%emt 0:00:46]} Kb8 {[%emt 0:00:23]} 23. d5 {[%emt 0:01:42]} Bxa4 {[%emt 0:04:25]} 24. Rc1 {[%emt 0:03:53]} Rc4 {[%emt 0:06:42]} 25. Be3 $1 {[%emt 0:00:22] Threatens to win with Qe2.} a6 $1 {[%emt 0:03:36]} 26. Re1 {[%emt 0:07:08]} Bb5 {[%emt 0:03:14]} 27. Bg1 {[%emt 0:00:49]} Rc2 {[%emt 0:01:16]} 28. Qf3 {[%emt 0:02:09]} Rd8 {[%emt 0:00:55]} ({Black should try} 28... Bc5 $17) 29. h3 {[%emt 0:03:42]} Bc5 {[%emt 0:00:47]} 30. Bh2 {[%emt 0:01:01]} Bd6 {[%emt 0:00:06]} 31. Bg1 {[%emt 0:00:06]} Rc3 {[%emt 0:03:21]} (31... b6 $15) 32. Qg4 {[%emt 0:03:59]} (32. Bb6 {is interesting.} Qc4 33. Re4 Qb3 34. Re3) 32... Be5 {[%emt 0:01:20]} (32... Rc4 $15 {feels stronger.} 33. Qe2 b6) 33. Rxe5 {[%emt 0:01:34]} fxe5 {[%emt 0:00:07]} (33... Qxe5 $2 34. Bh2 $18 (34. Qxg7 Rg3 $15)) 34. Re1 {[%emt 0:00:24]} Ka8 {[%emt 0:01:34]} 35. Qe4 {[%emt 0:00:37]} Qd6 {[%emt 0:01:45] [#]} (35... Rd3 $11) 36. Bh2 $1 $16 {[%emt 0:01:01] This pair of bishops is nice.} Rc4 {[%emt 0:00:29]} (36... Qe7 $16) 37. Qe3 $2 {[%emt 0:00:11]} (37. Qxe5 $18 Qb4 38. Bg3 (38. d6 Rc5 $17)) 37... Qc5 $11 {[%emt 0:00:33] Hoping for ...Qxe3.} 38. Qxe5 {[%emt 0:00:39][%cal Oh2g1] Bg1! would now be deadly.} Qd4 {[%emt 0:00:31]} 39. Qg3 {[%emt 0:02:34][%mdl 1024] aiming for Bg1. White has compensation.} (39. d6 Qxe5 40. Bxe5 Rc2 $15) (39. Qxd4 {simplifies} Rxd4 40. Be5 R4xd5 41. Bxg7 Rd1 42. Rxd1 Rxd1+ 43. Kh2) 39... Rc3 $1 {[%emt 0:00:27]} 40. Qg6 {[%emt 0:00:35]} (40. Qe5 $11 {remains equal.} Rc4 41. Bg3 (41. d6 Qxe5 42. Bxe5 Rc2 $15)) 40... Qf2 {[%emt 0:00:21]} 41. Rg1 {[%emt 0:31:18]} Qd4 {[%emt 0:08:02]} 42. Re1 {[%emt 0:00:00] [#]} Qf2 {[%emt 0:11:51]} (42... Be2 $1 $17 {[%cal Oc3h3] And now ...Rxh3! would win.} 43. Bg1 (43. Rxe2 $2 {is a self mate.} Rc1+) (43. d6 $2 Rxh3 44. f6 Rh5 $19) 43... Qd2 44. Rxe2 Qxe2 45. Qxg7 Rc2) 43. Rg1 {[%emt 0:00:00]} Qd4 {[%emt 0:00:13] Weighted Error Value: White=0.23 (precise) /Black=0.30.  Mistake:       	White=4     	Black=8      Inaccurate:     	White=6     	Black=1      OK:         	White=11    	Black=14     Best:        	White=2     	Black=2      Strong:       	White=2     	Black=2} 1/2-1/2